fUSD/lending_fUSD_20240329
["ID","MTS","AMOUNT","RATE_DAILY","PERIOD"]
[320929472,1711715482276,-500.0,0.00054795,120]
[320929473,1711715482285,-500.0,0.00054795,120]
[320929474,1711715482294,-500.0,0.00054795,120]
[320929475,1711715482303,-500.0,0.00054795,120]
[320929476,1711715482312,-500.0,0.00054795,120]
[320929477,1711715482321,-500.0,0.00054795,120]
[320929478,1711715482330,-500.0,0.00054795,120]
[320929479,1711715482338,-500.0,0.00054795,120]
[320929480,1711715482348,-500.0,0.00054795,120]
[320929481,1711715482357,-500.0,0.00054795,120]
[320929482,1711715482365,-500.0,0.00054795,120]
[320929483,1711715482374,-500.0,0.00054795,120]
[320929484,1711715482383,-500.0,0.00054795,120]
[320929485,1711715482392,-500.0,0.00054795,120]
[320929486,1711715482401,-500.0,0.00054795,120]
[320929487,1711715482410,-500.0,0.00054795,120]
[320929488,1711715482418,-500.0,0.00054795,120]
[320929489,1711715482427,-500.0,0.00054795,120]
[320929490,1711715482436,-500.0,0.00054795,120]
[320929491,1711715482445,-500.0,0.00054795,120]
[320929492,1711715482454,-500.0,0.00054795,120]
[320929493,1711715482462,-500.0,0.00054795,120]
[320929494,1711715482471,-500.0,0.00054795,120]
[320929495,1711715482482,-840.0,0.00054795,120]
[320929496,1711715482491,-500.0,0.00054795,120]
[320929497,1711715482500,-500.0,0.00054795,120]
[320929498,1711715482509,-500.0,0.00054795,120]
[320929499,1711715482518,-500.0,0.00054795,120]
[320929500,1711715482527,-500.0,0.00054795,120]
[320929501,1711715482536,-500.0,0.00054795,120]
[320929502,1711715482545,-500.0,0.00054795,120]
[320929503,1711715482554,-500.0,0.00054795,120]
[320929504,1711715482563,-500.0,0.00054795,120]
[320929505,1711715482571,-500.0,0.00054795,120]
[320929506,1711715482580,-500.0,0.00054795,120]
[320929507,1711715482589,-500.0,0.00054795,120]
[320929508,1711715482598,-500.0,0.00054795,120]
[320929509,1711715482607,-500.0,0.00054795,120]
[320929510,1711715482616,-500.0,0.00054795,120]
[320929511,1711715482625,-500.0,0.00054795,120]
[320929512,1711715482635,-500.0,0.00054795,120]
[320929513,1711715482644,-500.0,0.00054795,120]
[320929514,1711715482654,-500.0,0.00054795,120]
[320929515,1711715482665,-500.0,0.00054795,120]
[320929516,1711715482675,-500.0,0.00054795,120]
[320929517,1711715482685,-500.0,0.00054795,120]
[320929518,1711715482696,-500.0,0.00054795,120]
[320929519,1711715482707,-500.0,0.00054795,120]
[320929520,1711715482718,-500.0,0.00054795,120]
[320929521,1711715482734,-500.0,0.00054795,120]
[320929522,1711715482744,-500.0,0.00054795,120]
[320929523,1711715482754,-500.0,0.00054795,120]
[320929524,1711715482764,-500.0,0.00054795,120]
[320929525,1711715482773,-500.0,0.00054795,120]
[320929526,1711715482783,-500.0,0.00054795,120]
[320929527,1711715482794,-500.0,0.00054795,120]
[320929528,1711715482804,-500.0,0.00054795,120]
[320929529,1711715482814,-500.0,0.00054795,120]
[320929530,1711715482823,-500.0,0.00054795,120]
[320929531,1711715482834,-1000.0,0.00054795,13]
[320929532,1711715482844,-500.0,0.00054795,120]
[320929533,1711715482854,-1000.0,0.00054795,13]
[320929534,1711715482864,-500.0,0.00054795,120]
[320929535,1711715482874,-1000.0,0.00054795,13]
[320929536,1711715482884,-500.0,0.00054795,120]
[320929537,1711715482893,-500.0,0.00054795,120]
[320929538,1711715482902,-500.0,0.00054795,120]
[320929539,1711715482912,-1000.0,0.00054795,13]
[320929540,1711715482921,-500.0,0.00054795,120]
[320929541,1711715482931,-1000.0,0.00054795,13]
[320929542,1711715482940,-500.0,0.00054795,120]
[320929543,1711715482949,-1000.0,0.00054795,13]
[320929544,1711715482959,-500.0,0.00054795,120]
[320929545,1711715482968,-1000.0,0.00054795,13]
[320929546,1711715482978,-500.0,0.00054795,120]
[320929547,1711715482992,-1000.0,0.00054795,13]
[320929548,1711715483001,-500.0,0.00054795,120]
[320929549,1711715483011,-1000.0,0.00054795,13]
[320929550,1711715483022,-500.0,0.00054795,120]
[320929551,1711715483031,-1000.0,0.00054795,13]
[320929552,1711715483040,-500.0,0.00054795,120]
[320929553,1711715483049,-1000.0,0.00054795,13]
[320929554,1711715483060,-500.0,0.00054795,120]
[320929555,1711715483069,-1000.0,0.00054795,13]
[320929556,1711715483078,-500.0,0.00054795,120]
[320929557,1711715483088,-1000.0,0.00054795,13]
[320929558,1711715483099,-500.0,0.00054795,120]
[320929559,1711715483108,-500.0,0.00054795,120]
[320929560,1711715483118,-500.0,0.00054795,120]
[320929561,1711715483127,-500.0,0.00054795,120]
[320929562,1711715483192,-500.0,0.00054795,120]
[320929563,1711715483203,-500.0,0.00054795,120]
[320929564,1711715483212,-500.0,0.00054795,120]
[320929565,1711715483222,-500.0,0.00054795,120]
[320929566,1711715483233,-500.0,0.00054795,120]
[320929567,1711715483243,-500.0,0.00054795,120]
[320929568,1711715483253,-500.0,0.00054795,120]
[320929569,1711715483262,-500.0,0.00054795,120]
[320929570,1711715483272,-500.0,0.00054795,120]
[320929571,1711715483282,-500.0,0.00054795,120]
[320929572,1711715483291,-500.0,0.00054795,120]
[320929573,1711715483300,-500.0,0.00054795,120]
[320929574,1711715483309,-500.0,0.00054795,120]
[320929575,1711715483317,-500.0,0.00054795,120]
[320929576,1711715483326,-564.0,0.00054795,120]
[320929577,1711715483336,-608.0,0.00054795,120]
[320929578,1711715483345,-863.0,0.00054795,120]
[320929579,1711715483354,-900.0,0.00054795,120]
[320929580,1711715483363,-900.0,0.00054795,120]
[320929581,1711715483372,-900.0,0.00054795,120]
[320929582,1711715483381,-205.116034,0.00054795,120]
[320929583,1711715483390,-1000.0,0.00054795,13]
[320929584,1711715483399,-1000.0,0.00054795,13]
[320929585,1711715483408,-1000.0,0.00054795,13]
[320929586,1711715483416,-1000.0,0.00054795,13]
[320929587,1711715483425,-1000.0,0.00054795,13]
[320929588,1711715483434,-1000.0,0.00054795,13]
[320929589,1711715483443,-1000.0,0.00054795,13]
[320929590,1711715483452,-1000.0,0.00054795,13]
[320929591,1711715483462,-998.0,0.00054795,13]
[320929592,1711715483471,-500.0,0.00054795,120]
[320929593,1711715483484,-520.0,0.00054795,120]
[320929594,1711715483494,-822.0,0.00054795,120]
[320929595,1711715483503,-500.0,0.00054795,120]
[320929596,1711715483512,-500.0,0.00054795,120]
[320929597,1711715483521,-500.0,0.00054795,120]
[320929598,1711715483531,-753.0,0.00054795,120]
[320929599,1711715483540,-12151.08,0.00054795,30]
[320929600,1711715483549,-500.0,0.00054795,120]
[320929601,1711715483558,-500.0,0.00054795,120]
[320929602,1711715483567,-500.0,0.00054795,120]
[320929603,1711715483576,-500.0,0.00054795,120]
[320929604,1711715483586,-500.0,0.00054795,120]
[320929605,1711715483595,-500.0,0.00054795,120]
[320929606,1711715483605,-500.0,0.00054795,120]
[320929607,1711715483614,-500.0,0.00054795,120]
[320929608,1711715483627,-500.0,0.00054795,120]
[320929609,1711715483636,-500.0,0.00054795,120]
[320929610,1711715483646,-500.0,0.00054795,120]
[320929611,1711715483655,-500.0,0.00054795,120]
[320929612,1711715483665,-500.0,0.00054795,120]
[320929613,1711715483675,-500.0,0.00054795,120]
[320929614,1711715483685,-500.0,0.00054795,120]
[320929615,1711715483694,-500.0,0.00054795,120]
[320929616,1711715483703,-500.0,0.00054795,120]
[320929617,1711715483713,-500.0,0.00054795,120]
[320929618,1711715483722,-500.0,0.00054795,120]
[320929619,1711715483732,-500.0,0.00054795,120]
[320929620,1711715483742,-500.0,0.00054795,120]
[320929621,1711715483751,-500.0,0.00054795,120]
[320929622,1711715483760,-500.0,0.00054795,120]
[320929623,1711715483769,-500.0,0.00054795,120]
[320929624,1711715483778,-500.0,0.00054795,120]
[320929625,1711715483787,-500.0,0.00054795,120]
[320929626,1711715483797,-500.0,0.00054795,120]
[320929627,1711715483805,-500.0,0.00054795,120]
[320929628,1711715483814,-500.0,0.00054795,120]
[320929629,1711715483823,-500.0,0.00054795,120]
[320929630,1711715483833,-500.0,0.00054795,120]
[320929631,1711715483842,-833.0,0.00054795,120]
[320929632,1711715483852,-155.49510715,0.000548,120]
[320929633,1711715483861,-1001.9,0.000548,60]
[320929634,1711715483870,-1547.22950343,0.000548,2]
[320929635,1711715483879,-445.60575563,0.000548,120]
[320929636,1711715483888,-314.82,0.00054875,2]
[320929637,1711715483898,-4821.24114706,0.000549,120]
[320929638,1711715483907,-2823.19337949,0.000549,120]
[320929639,1711715483916,-152.65,0.000549,8]
[320929640,1711715483925,-152.65,0.000549,8]
[320929641,1711715483934,-152.65,0.000549,8]
[320929642,1711715483943,-152.65,0.000549,8]
[320929643,1711715483953,-152.65,0.000549,8]
[320929644,1711715483962,-152.65,0.000549,8]
[320929645,1711715483971,-152.65,0.000549,8]
[320929646,1711715483983,-152.65,0.000549,8]
[320929647,1711715483995,-152.65,0.000549,8]
[320929648,1711715484005,-152.65,0.000549,8]
[320929649,1711715484014,-152.65,0.000549,8]
[320929650,1711715484024,-152.65,0.000549,8]
[320929651,1711715484035,-152.65,0.000549,8]
[320929652,1711715484045,-152.65,0.000549,8]
[320929653,1711715484053,-152.65,0.000549,8]
[320929654,1711715484063,-152.65,0.000549,8]
[320929655,1711715484072,-3455.57,0.000549,8]
[320929656,1711715484082,-3455.57,0.000549,8]
[320929657,1711715484092,-3455.57,0.000549,8]
[320929658,1711715484102,-3455.57,0.000549,8]
[320929659,1711715484111,-3455.57,0.000549,8]
[320929660,1711715484121,-3455.57,0.000549,8]
[320929661,1711715484130,-3455.57,0.000549,8]
[320929662,1711715484139,-3455.57,0.000549,8]
[320929663,1711715484149,-3455.57,0.000549,8]
[320929664,1711715484158,-3455.57,0.000549,8]
[320929665,1711715484168,-3455.57,0.000549,8]
[320929666,1711715484178,-3455.57,0.000549,8]
[320929667,1711715484188,-3455.57,0.000549,8]
[320929668,1711715484197,-3455.57,0.000549,8]
[320929669,1711715484206,-3455.57,0.000549,8]
[320929670,1711715484216,-3455.57,0.000549,8]
[320929671,1711715484226,-3455.57,0.000549,8]
[320929672,1711715484237,-3455.57,0.000549,8]
[320929673,1711715484247,-3455.57,0.000549,8]
[320929674,1711715484257,-3455.57,0.000549,8]
[320929675,1711715484267,-6920.17337439,0.0005498,2]
[320929676,1711715484277,-200.0,0.00054987,2]
[320929677,1711715484287,-185.51878917,0.00054998,120]
[320929678,1711715484296,-89439.65523109,0.00055,120]
[320929679,1711715484305,-410.0,0.00055,120]
[320929680,1711715484314,-256.54449591,0.00055,30]
[320929681,1711715484323,-150.0,0.00055,60]
[320929682,1711715484333,-3600.0,0.00055,120]
[320929683,1711715484342,-550.0,0.00055,120]
[320929684,1711715484351,-200.0,0.00055,120]
[320929685,1711715484360,-1000.0,0.00055,2]
[320929686,1711715484369,-2000.0,0.00055,120]
[320929687,1711715484378,-987.78625279,0.00055,120]
[320929688,1711715484387,-255.96,0.00055,120]
[320929689,1711715484396,-1000.0,0.00055,55]
[320929690,1711715484405,-1000.0,0.00055,55]
[320929691,1711715484415,-1000.0,0.00055,55]
[320929692,1711715484424,-1000.0,0.00055,55]
[320929693,1711715484433,-1000.0,0.00055,55]
[320929694,1711715484442,-207.37723805,0.00055,120]
[320929695,1711715484451,-61599.05410382,0.00055,30]
[320929696,1711715484462,-10487.0,0.00055,120]
[320929697,1711715484471,-20000.0,0.00055,120]
[320929698,1711715484482,-9045.0,0.00055,120]
[320929699,1711715484491,-1000.0,0.00055,120]
[320929700,1711715484500,-31840.0,0.00055,60]
[320929701,1711715484510,-595.34,0.00055,120]
[320929702,1711715484519,-500.0,0.00055,120]
[320929703,1711715484528,-64338.75929437,0.00055,30]
[320929704,1711715484537,-9573.0,0.00055,120]
[320929705,1711715484546,-235.0,0.00055,30]
[320929706,1711715484555,-509.15,0.00055,7]
[320929707,1711715484565,-500.0,0.00055,120]
[320929708,1711715484574,-7052.20586999,0.00055,30]
[320929709,1711715484583,-255.0,0.00055,120]
[320929710,1711715484592,-11376.02082177,0.00055,120]
[320929711,1711715484601,-10628.1131252,0.00055,5]
[320929712,1711715484611,-1317.160699,0.00055,96]
[320929713,1711715484620,-500.0,0.00055068,120]
[320929714,1711715484629,-1672.16,0.00055068,120]
[320929715,1711715484770,-740.46,0.00055068,120]
[320929716,1711715484780,-522.88,0.00055068,120]
[320929717,1711715484789,-1256.8,0.00055068,120]
[320929718,1711715484798,-525.02,0.00055068,120]
[320929719,1711715484812,-1085.74,0.00055068,120]
[320929720,1711715484822,-930.68,0.00055068,120]
[320929721,1711715484832,-1247.64,0.00055068,120]
[320929722,1711715484848,-500.0,0.00055068,120]
[320929723,1711715484857,-637.35,0.00055068,120]
[320929724,1711715484867,-2186.22,0.00055068,120]
[320929725,1711715484877,-1025.85,0.00055068,120]
[320929726,1711715484886,-1080.64,0.00055068,120]
[320929727,1711715484896,-2210.32,0.00055068,120]
[320929728,1711715484905,-813.7,0.00055068,120]
[320929729,1711715484915,-500.0,0.00055068,120]
[320929730,1711715484924,-5519.83,0.00055068,120]
[320929731,1711715484934,-644.49,0.00055068,120]
[320929732,1711715484944,-522.99,0.00055068,120]
[320929733,1711715484953,-1098.18,0.00055068,120]
[320929734,1711715484963,-744.47,0.00055068,120]
[320929735,1711715484972,-532.08,0.00055068,120]
[320929736,1711715484985,-815.77,0.00055068,120]
[320929737,1711715484997,-1398.69,0.00055068,120]
[320929738,1711715485006,-261.36882454,0.00055068,120]
[320929739,1711715485015,-2306.29,0.00055068,120]
[320929740,1711715485024,-1134.32,0.00055068,120]
[320929741,1711715485035,-906.41,0.00055068,120]
[320929742,1711715485045,-2037.34,0.00055068,120]
[320929743,1711715485055,-897.77,0.00055068,120]
[320929744,1711715485064,-831.59,0.00055068,120]
[320929745,1711715485074,-837.52,0.00055068,120]
[320929746,1711715485084,-1445.92,0.00055068,120]
[320929747,1711715485094,-865.91,0.00055068,120]
[320929748,1711715485103,-4401.0,0.00055068,120]
[320929749,1711715485113,-618.06,0.00055068,120]
[320929750,1711715485123,-11946.25,0.00055068,120]
[320929751,1711715485133,-553.68,0.00055068,120]
[320929752,1711715485143,-536.07,0.00055068,120]
[320929753,1711715485152,-749.63,0.00055068,120]
[320929754,1711715485161,-970.01,0.00055068,120]
[320929755,1711715485170,-989.16,0.00055068,120]
[320929756,1711715485180,-1295.72,0.00055068,120]
[320929757,1711715485190,-1210.99,0.00055068,120]
[320929758,1711715485199,-1766.07,0.00055068,120]
[320929759,1711715485208,-803.36,0.00055068,120]
[320929760,1711715485217,-607.41,0.00055068,120]
[320929761,1711715485227,-1040.75,0.00055068,120]
[320929762,1711715485238,-591.93,0.00055068,120]
[320929763,1711715485248,-500.0,0.00055068,120]
[320929764,1711715485259,-974.57,0.00055068,120]
[320929765,1711715485268,-937.75,0.00055068,120]
[320929766,1711715485277,-7631.65,0.00055068,120]
[320929767,1711715485286,-547.15,0.00055068,120]
[320929768,1711715485295,-849.68,0.00055068,120]
[320929769,1711715485304,-1598.48,0.00055068,120]
[320929770,1711715485313,-530.07,0.00055068,120]
[320929771,1711715485322,-544.49,0.00055068,120]
[320929772,1711715485331,-1844.98,0.00055068,120]
[320929773,1711715485340,-521.32,0.00055068,120]
[320929774,1711715485349,-600.49,0.00055068,120]
[320929775,1711715485358,-725.02,0.00055068,120]
[320929776,1711715485367,-997.33,0.00055068,120]
[320929777,1711715485376,-532.33,0.00055068,120]
[320929778,1711715485385,-2494.86,0.00055068,120]
[320929779,1711715485394,-635.78,0.00055068,120]
[320929780,1711715485403,-500.0,0.00055068,120]
[320929781,1711715485412,-854.79,0.00055068,21]
[320929782,1711715485421,-986.55,0.00055068,120]
[320929783,1711715485429,-2139.57,0.00055068,120]
[320929784,1711715485438,-568.90933747,0.00055068,120]
[320929785,1711715485447,-947.88,0.00055068,120]
[320929786,1711715485456,-922.26,0.00055068,120]
[320929787,1711715485465,-809.13,0.00055068,120]
[320929788,1711715485474,-555.49,0.00055068,120]
[320929789,1711715485485,-500.0,0.00055068,120]
[320929790,1711715485493,-1496.84,0.00055068,120]
[320929791,1711715485503,-1713.03,0.00055068,120]
[320929792,1711715485513,-714.32,0.00055068,120]
[320929793,1711715485523,-652.78,0.00055068,120]
[320929794,1711715485532,-525.31,0.00055068,120]
[320929795,1711715485542,-599.43,0.00055068,120]
[320929796,1711715485551,-513.23,0.00055068,120]
[320929797,1711715485560,-1171.13,0.00055068,120]
[320929798,1711715485569,-1412.38,0.00055068,120]
[320929799,1711715485578,-594.44,0.00055068,120]
[320929800,1711715485587,-2019.49,0.00055068,120]
[320929801,1711715485597,-633.69502313,0.00055068,120]
[320929802,1711715485606,-525.7,0.00055068,120]
[320929803,1711715485615,-556.54,0.00055068,120]
[320929804,1711715485624,-699.71,0.00055068,120]
[320929805,1711715485634,-168.09,0.00055068,2]
[320929806,1711715485643,-150.0,0.0005508,120]
[320929807,1711715485652,-150.0,0.00055136,120]
[320929808,1711715485661,-157.032919,0.00055148,111]
[320929809,1711715485670,-1041.92,0.00055164,2]
[320929810,1711715485679,-3215.18783717,0.00055173,33]
[320929811,1711715485689,-521.621577,0.000552,40]
[320929812,1711715485699,-151.69724403,0.00055216,64]
[320929813,1711715485709,-12000.0,0.00055219,8]
[320929814,1711715485718,-308.43333333,0.00055233,120]
[320929815,1711715485728,-500.0,0.00055342,120]
[320929816,1711715485740,-1672.16,0.00055342,120]
[320929817,1711715485750,-740.46,0.00055342,120]
[320929818,1711715485759,-522.88,0.00055342,120]
[320929819,1711715485768,-1256.8,0.00055342,120]
[320929820,1711715485779,-525.02,0.00055342,120]
[320929821,1711715485788,-1085.74,0.00055342,120]
[320929822,1711715485798,-930.68,0.00055342,120]
[320929823,1711715485807,-1247.64,0.00055342,120]
[320929824,1711715485816,-513.93,0.00055342,120]
[320929825,1711715485825,-637.35,0.00055342,120]
[320929826,1711715485835,-2186.22,0.00055342,120]
[320929827,1711715485845,-1025.85,0.00055342,120]
[320929828,1711715485854,-1080.64,0.00055342,120]
[320929829,1711715485863,-2210.32,0.00055342,120]
[320929830,1711715485873,-813.7,0.00055342,120]
[320929831,1711715485882,-500.0,0.00055342,120]
[320929832,1711715485892,-5519.83,0.00055342,120]
[320929833,1711715485901,-644.49,0.00055342,120]
[320929834,1711715485912,-522.99,0.00055342,120]
[320929835,1711715485921,-1098.18,0.00055342,120]
[320929836,1711715485930,-744.47,0.00055342,120]
[320929837,1711715485940,-532.08,0.00055342,120]
[320929838,1711715485949,-815.77,0.00055342,120]
[320929839,1711715485958,-1398.69,0.00055342,120]
[320929840,1711715485967,-2306.29,0.00055342,120]
[320929841,1711715485977,-1134.32,0.00055342,120]
[320929842,1711715485990,-906.41,0.00055342,120]
[320929843,1711715485999,-2037.34,0.00055342,120]
[320929844,1711715486010,-897.77,0.00055342,120]
[320929845,1711715486019,-831.59,0.00055342,120]
[320929846,1711715486030,-837.52,0.00055342,120]
[320929847,1711715486039,-1445.92,0.00055342,120]
[320929848,1711715486049,-865.91,0.00055342,120]
[320929849,1711715486058,-4401.0,0.00055342,120]
[320929850,1711715486068,-618.06,0.00055342,120]
[320929851,1711715486077,-11946.25,0.00055342,120]
[320929852,1711715486089,-553.68,0.00055342,120]
[320929853,1711715486098,-536.07,0.00055342,120]
[320929854,1711715486107,-749.63,0.00055342,120]
[320929855,1711715486117,-989.16,0.00055342,120]
[320929856,1711715486126,-970.01,0.00055342,120]
[320929857,1711715486136,-1295.72,0.00055342,120]
[320929858,1711715486145,-1210.99,0.00055342,120]
[320929859,1711715486154,-1766.07,0.00055342,120]
[320929860,1711715486163,-803.36,0.00055342,120]
[320929861,1711715486173,-607.41,0.00055342,120]
[320929862,1711715486182,-1040.75,0.00055342,120]
[320929863,1711715486191,-591.93,0.00055342,120]
[320929864,1711715486201,-379.15083594,0.00055342,120]
[320929865,1711715486211,-974.57,0.00055342,120]
[320929866,1711715486220,-937.75,0.00055342,120]
[320929867,1711715486232,-7631.65,0.00055342,120]
[320929868,1711715486241,-547.15,0.00055342,120]
[320929869,1711715486251,-849.68,0.00055342,120]
[320929870,1711715486260,-1598.48,0.00055342,120]
[320929871,1711715486269,-530.07,0.00055342,120]
[320929872,1711715486279,-544.49,0.00055342,120]
[320929873,1711715486288,-1844.98,0.00055342,120]
[320929874,1711715486297,-521.32,0.00055342,120]
[320929875,1711715486307,-600.49,0.00055342,120]
[320929876,1711715486316,-725.02,0.00055342,120]
[320929877,1711715486325,-997.33,0.00055342,120]
[320929878,1711715486335,-532.33,0.00055342,120]
[320929879,1711715486344,-2494.86,0.00055342,120]
[320929880,1711715486354,-635.78,0.00055342,120]
[320929881,1711715486363,-626.85650551,0.00055342,120]
[320929882,1711715486372,-854.79,0.00055342,21]
[320929883,1711715486381,-986.55,0.00055342,120]
[320929884,1711715486390,-2139.57,0.00055342,120]
[320929885,1711715486399,-947.88,0.00055342,120]
[320929886,1711715486408,-922.26,0.00055342,120]
[320929887,1711715486417,-809.13,0.00055342,120]
[320929888,1711715486426,-555.49,0.00055342,120]
[320929889,1711715486436,-500.0,0.00055342,120]
[320929890,1711715486445,-1496.84,0.00055342,120]
[320929891,1711715486454,-1713.03,0.00055342,120]
[320929892,1711715486464,-714.32,0.00055342,120]
[320929893,1711715486473,-652.78,0.00055342,120]
[320929894,1711715486484,-525.31,0.00055342,120]
[320929895,1711715486493,-599.43,0.00055342,120]
[320929896,1711715486502,-513.23,0.00055342,120]
[320929897,1711715486511,-1171.13,0.00055342,120]
[320929898,1711715486520,-594.44,0.00055342,120]
[320929899,1711715486529,-2019.49,0.00055342,120]
[320929900,1711715486539,-525.7,0.00055342,120]
[320929901,1711715486548,-556.54,0.00055342,120]
[320929902,1711715486558,-699.71,0.00055342,120]
[320929903,1711715486567,-157.032921,0.00055348,115]
[320929904,1711715486576,-377.0,0.00055363,30]
[320929905,1711715486585,-305.0,0.00055363,30]
[320929906,1711715486595,-173.032921,0.00055448,114]
[320929907,1711715486604,-1009.3,0.00055515,2]
[320929908,1711715486614,-5000.0,0.00055585,90]
[320929909,1711715486623,-500.0,0.00055616,120]
[320929910,1711715486632,-1672.3033011,0.00055616,120]
[320929911,1711715486641,-740.62219231,0.00055616,120]
[320929912,1711715486651,-523.05895589,0.00055616,120]
[320929913,1711715486660,-1256.95770746,0.00055616,120]
[320929914,1711715486670,-525.09568767,0.00055616,120]
[320929915,1711715486679,-1085.85642246,0.00055616,120]
[320929916,1711715486688,-930.74913774,0.00055616,120]
[320929917,1711715486698,-1247.78310127,0.00055616,120]
[320929918,1711715486708,-637.47,0.00055616,120]
[320929919,1711715486718,-2186.3009314,0.00055616,120]
[320929920,1711715486727,-1025.88,0.00055616,120]
[320929921,1711715486742,-1080.7252038,0.00055616,120]
[320929922,1711715486751,-2210.50680137,0.00055616,120]
[320929923,1711715486760,-813.78594415,0.00055616,120]
[320929924,1711715486770,-213.90619718,0.00055616,120]
[320929925,1711715486780,-5520.01815644,0.00055616,120]
[320929926,1711715486790,-644.58493575,0.00055616,120]
[320929927,1711715486800,-523.19470359,0.00055616,120]
[320929928,1711715486809,-1098.37638996,0.00055616,120]
[320929929,1711715486819,-744.64661028,0.00055616,120]
[320929930,1711715486828,-532.1755176,0.00055616,120]
[320929931,1711715486848,-816.00802583,0.00055616,120]
[320929932,1711715486857,-1398.85522738,0.00055616,120]
[320929933,1711715486867,-2306.38345564,0.00055616,120]
[320929934,1711715486876,-1134.5128727,0.00055616,120]
[320929935,1711715486886,-906.56082649,0.00055616,120]
[320929936,1711715486895,-2037.38208916,0.00055616,120]
[320929937,1711715486905,-897.84,0.00055616,120]
[320929938,1711715486914,-831.6506324,0.00055616,120]
[320929939,1711715486924,-837.65511154,0.00055616,120]
[320929940,1711715486933,-1445.95018406,0.00055616,120]
[320929941,1711715486943,-865.93733252,0.00055616,120]
[320929942,1711715486954,-4401.0562,0.00055616,120]
[320929943,1711715486964,-618.14072584,0.00055616,120]
[320929944,1711715486974,-11946.3799,0.00055616,120]
[320929945,1711715486986,-553.86603874,0.00055616,120]
[320929946,1711715486996,-536.24549804,0.00055616,120]
[320929947,1711715487007,-749.86504427,0.00055616,120]
[320929948,1711715487019,-970.23696659,0.00055616,120]
[320929949,1711715487028,-989.16565805,0.00055616,120]
[320929950,1711715487038,-1295.94697014,0.00055616,120]
[320929951,1711715487048,-1211.16831073,0.00055616,120]
[320929952,1711715487060,-803.55768863,0.00055616,120]
[320929953,1711715487070,-1766.23177419,0.00055616,120]
[320929954,1711715487080,-607.51847607,0.00055616,120]
[320929955,1711715487092,-1040.93105948,0.00055616,120]
[320929956,1711715487101,-592.10615915,0.00055616,120]
[320929957,1711715487111,-974.79296464,0.00055616,120]
[320929958,1711715487120,-937.78039729,0.00055616,120]
[320929959,1711715487130,-7631.87254261,0.00055616,120]
[320929960,1711715487140,-547.2465593,0.00055616,120]
[320929961,1711715487149,-849.88572039,0.00055616,120]
[320929962,1711715487188,-1598.48631426,0.00055616,120]
[320929963,1711715487198,-530.12026478,0.00055616,120]
[320929964,1711715487208,-544.59,0.00055616,120]
[320929965,1711715487218,-1845.00642027,0.00055616,120]
[320929966,1711715487231,-521.32885906,0.00055616,120]
[320929967,1711715487241,-600.56722408,0.00055616,120]
[320929968,1711715487250,-725.17200984,0.00055616,120]
[320929969,1711715487260,-997.39693231,0.00055616,120]
[320929970,1711715487269,-532.40680229,0.00055616,120]
[320929971,1711715487279,-2494.9742659,0.00055616,120]